lending/lending_fUSD_20250114
["ID","MTS","AMOUNT","RATE_DAILY","PERIOD"]
[348943983,1736884232453,-996.22,0.0001,2]
[348943984,1736884232462,-1014.05,0.0001,2]
[348943985,1736884232471,-2643.25447908,0.00010091,4]
[348943986,1736884232480,-2148.31851219,0.00010091,4]
[348943987,1736884232490,-184.12,0.00010137,2]
[348943988,1736884232499,-158.33,0.00010137,2]
[348943989,1736884232508,-857.37,0.00010137,2]
[348943990,1736884232518,-150.0,0.00010247,2]
[348943991,1736884232527,-150.0,0.00010247,2]
[348943992,1736884232536,-150.0,0.00010247,2]
[348943993,1736884232545,-150.0,0.00010247,2]
[348943994,1736884232555,-429.93842545,0.00010332,2]
[348943995,1736884232564,-270.9717,0.00010442,2]
[348943996,1736884232573,-186.66955084,0.00010442,2]
[348943997,1736884232582,-159.16570219,0.00010442,2]
[348943998,1736884232591,-539.87,0.00010453,2]
[348943999,1736884232600,-429.93842545,0.00010462,2]
[348944000,1736884232610,-437.17,0.000105,2]
[348944001,1736884232619,-159.16570207,0.00010511,2]
[348944002,1736884232628,-2468.39258222,0.00010521,2]
[348944003,1736884232638,-500.0,0.00010541,2]
[348944004,1736884232647,-500.0,0.00010541,2]
[348944005,1736884232657,-455.785316,0.00010542,2]
[348944006,1736884232666,-500.0,0.00010542,2]
[348944007,1736884232676,-500.0,0.00010542,2]
[348944008,1736884232685,-500.0,0.00010542,2]
[348944009,1736884232694,-2216.07,0.00010542,2]
[348944010,1736884232703,-723.94,0.00010542,2]
[348944011,1736884232714,-500.0,0.00010542,2]
[348944012,1736884232724,-500.0,0.00010542,2]
[348944013,1736884232734,-500.0,0.00010542,2]
[348944014,1736884232745,-500.0,0.00010542,2]
[348944015,1736884232756,-500.0,0.00010542,2]
[348944016,1736884232765,-1384.06,0.00010542,2]
[348944017,1736884232775,-500.0,0.00010542,2]
[348944018,1736884232785,-500.0,0.00010542,2]
[348944019,1736884232795,-500.0,0.00010542,2]
[348944020,1736884232804,-488.22817581,0.00010542,2]
[348944021,1736884232814,-552.33504537,0.00010542,2]
[348944022,1736884232826,-500.0,0.00010542,2]
[348944023,1736884232835,-500.0,0.00010542,2]
[348944024,1736884232846,-500.0,0.00010542,2]
[348944025,1736884232857,-500.0,0.00010542,2]
[348944026,1736884232867,-500.0,0.00010542,2]
[348944027,1736884232875,-564.89,0.00010542,2]
[348944028,1736884232886,-808.36,0.00010542,2]
[348944029,1736884232896,-313.9561057,0.00010542,2]
[348944030,1736884232907,-589.48,0.00010542,2]
[348944031,1736884232918,-500.0,0.00010542,2]
[348944032,1736884232928,-500.0,0.00010542,2]
[348944033,1736884232938,-508.54099142,0.00010542,2]
[348944034,1736884232947,-488.24134505,0.00010542,2]
[348944035,1736884232955,-1540.29,0.00010542,2]
[348944036,1736884232964,-500.0,0.00010542,2]
[348944037,1736884232973,-502.40944064,0.00010542,2]
[348944038,1736884232982,-500.0,0.00010542,2]
[348944040,1736884232991,-500.0,0.00010542,2]
[348944042,1736884233000,-501.54677122,0.00010542,2]
[348944043,1736884233010,-508.04071779,0.00010542,2]
[348944044,1736884233018,-691.76,0.00010542,2]
[348944045,1736884233027,-758.11,0.00010542,2]
[348944046,1736884233037,-500.0,0.00010542,2]
[348944047,1736884233046,-500.0,0.00010542,2]
[348944048,1736884233055,-500.0,0.00010542,2]
[348944049,1736884233064,-500.0,0.00010542,2]
[348944050,1736884233073,-500.0,0.00010542,2]
[348944051,1736884233082,-1700.66,0.00010542,2]
[348944052,1736884233092,-500.0,0.00010542,2]
[348944053,1736884233104,-1044.48,0.00010542,2]
[348944054,1736884233115,-500.0,0.00010542,2]
[348944055,1736884233124,-500.0,0.00010542,2]
[348944056,1736884233133,-500.92706138,0.00010542,2]
[348944057,1736884233142,-500.0,0.00010542,2]
[348944058,1736884233153,-500.0,0.00010542,2]
[348944059,1736884233163,-504.61696388,0.00010542,2]
[348944060,1736884233172,-500.0,0.00010542,2]
[348944061,1736884233182,-500.0,0.00010542,2]
[348944062,1736884233192,-1899.5,0.00010542,2]
[348944063,1736884233202,-500.0,0.00010542,2]
[348944064,1736884233211,-500.0,0.00010542,2]
[348944065,1736884233220,-500.0,0.00010542,2]
[348944066,1736884233230,-946.61,0.00010542,2]
[348944067,1736884233239,-500.0,0.00010542,2]
[348944068,1736884233248,-500.0,0.00010542,2]
[348944069,1736884233258,-500.0,0.00010542,2]
[348944070,1736884233268,-500.0,0.00010542,2]
[348944071,1736884233277,-500.0,0.00010542,2]
[348944072,1736884233286,-500.0,0.00010542,2]
[348944073,1736884233296,-500.0,0.00010542,2]
[348944074,1736884233306,-500.0,0.00010542,2]
[348944075,1736884233315,-500.0,0.00010542,2]
[348944076,1736884233324,-500.0,0.00010542,2]
[348944077,1736884233334,-508.17953391,0.00010542,2]
[348944078,1736884233343,-500.0,0.00010542,2]
[348944079,1736884233352,-2097.77,0.00010542,2]
[348944080,1736884233362,-500.0,0.00010542,2]
[348944081,1736884233372,-500.0,0.00010542,2]
[348944082,1736884233383,-500.0,0.00010542,2]
[348944083,1736884233392,-500.0,0.00010542,2]
[348944084,1736884233401,-500.0,0.00010542,2]
[348944085,1736884233411,-516.11091893,0.00010542,2]
[348944086,1736884233421,-500.0,0.00010542,2]
[348944087,1736884233430,-500.0,0.00010542,2]
[348944088,1736884233440,-500.0,0.00010542,2]
[348944089,1736884233449,-500.0,0.00010542,2]
[348944090,1736884233459,-4603.49,0.00010542,2]
[348944091,1736884233468,-1135.65,0.00010542,2]
[348944092,1736884233477,-494.41809416,0.00010542,2]
[348944093,1736884233486,-503.62431864,0.00010542,2]
[348944094,1736884233496,-537.64,0.00010542,2]
[348944095,1736884233505,-500.0,0.00010542,2]
[348944096,1736884233515,-500.0,0.00010542,2]
[348944097,1736884233524,-500.0,0.00010542,2]
[348944098,1736884233533,-500.0,0.00010542,2]
[348944099,1736884233542,-2066.2,0.00010542,2]
[348944100,1736884233551,-500.0,0.00010542,2]
[348944101,1736884233560,-500.0,0.00010542,2]
[348944102,1736884233569,-500.0,0.00010542,2]
[348944103,1736884233578,-500.0,0.00010542,2]
[348944104,1736884233587,-500.0,0.00010542,2]
[348944105,1736884233596,-500.0,0.00010542,2]
[348944106,1736884233606,-500.0,0.00010542,2]
[348944107,1736884233615,-500.0,0.00010542,2]
[348944108,1736884233624,-500.0,0.00010542,2]
[348944109,1736884233634,-500.0,0.00010542,2]
[348944110,1736884233644,-500.0,0.00010542,2]
[348944111,1736884233653,-500.0,0.00010542,2]
[348944112,1736884233662,-699.97,0.00010542,2]
[348944113,1736884233672,-500.0,0.00010542,2]
[348944114,1736884233682,-500.0,0.00010542,2]
[348944115,1736884233692,-553.30221765,0.00010542,2]
[348944116,1736884233702,-500.0,0.00010542,2]
[348944117,1736884233712,-500.0,0.00010542,2]
[348944118,1736884233724,-500.0,0.00010542,2]
[348944119,1736884233734,-500.0,0.00010542,2]
[348944120,1736884233745,-500.0,0.00010542,2]
[348944121,1736884233755,-500.0,0.00010542,2]
[348944122,1736884233765,-500.0,0.00010542,2]
[348944123,1736884233775,-500.0,0.00010542,2]
[348944124,1736884233785,-500.0,0.00010542,2]
[348944125,1736884233795,-500.64913116,0.00010542,2]
[348944126,1736884233804,-500.0,0.00010542,2]
[348944127,1736884233814,-500.0,0.00010542,2]
[348944128,1736884233823,-500.0,0.00010542,2]
[348944129,1736884233833,-500.0,0.00010542,2]
[348944130,1736884233843,-505.849332,0.00010542,2]
[348944131,1736884233853,-500.0,0.00010542,2]
[348944132,1736884233862,-500.0,0.00010542,2]
[348944133,1736884233872,-500.0,0.00010542,2]
[348944134,1736884233882,-500.0,0.00010542,2]
[348944135,1736884233892,-500.0,0.00010542,2]
[348944136,1736884233902,-522.0484965,0.00010542,2]
[348944137,1736884233912,-500.0,0.00010542,2]
[348944138,1736884233921,-500.0,0.00010542,2]
[348944139,1736884234160,-539.46,0.00010542,2]
[348944140,1736884234170,-500.0,0.00010542,2]
[348944141,1736884234180,-500.0,0.00010542,2]
[348944142,1736884234190,-500.0,0.00010542,2]
[348944143,1736884234200,-500.0,0.00010542,2]
[348944144,1736884234210,-500.0,0.00010542,2]
[348944145,1736884234219,-500.0,0.00010542,2]
[348944146,1736884234229,-500.0,0.00010542,2]
[348944147,1736884234238,-500.0,0.00010542,2]
[348944148,1736884234248,-500.0,0.00010542,2]
[348944149,1736884234257,-500.0,0.00010542,2]
[348944150,1736884234267,-500.0,0.00010542,2]
[348944151,1736884234276,-500.0,0.00010542,2]
[348944152,1736884234285,-500.0,0.00010542,2]
[348944153,1736884234294,-500.0,0.00010542,2]
[348944154,1736884234304,-500.0,0.00010542,2]
[348944155,1736884234313,-500.0,0.00010542,2]
[348944156,1736884234322,-500.0,0.00010542,2]
[348944157,1736884234331,-500.0,0.00010542,2]
[348944158,1736884234340,-500.0,0.00010542,2]
[348944159,1736884234350,-513.93662046,0.00010542,2]
[348944160,1736884234359,-500.0,0.00010542,2]
[348944161,1736884234369,-500.0,0.00010542,2]
[348944162,1736884234378,-276.37759194,0.00010542,2]
[348944163,1736884234389,-500.0,0.00010542,2]
[348944164,1736884234398,-1515.7,0.00010542,2]
[348944165,1736884234407,-500.0,0.00010542,2]
[348944166,1736884234416,-500.0,0.00010542,2]
[348944167,1736884234426,-501.57172581,0.00010542,2]
[348944168,1736884234435,-500.0,0.00010542,2]
[348944169,1736884234444,-500.0,0.00010542,2]
[348944170,1736884234454,-500.0,0.00010542,2]
[348944171,1736884234464,-500.0,0.00010542,2]
[348944172,1736884234474,-500.0,0.00010542,2]
[348944173,1736884234484,-1048.86,0.00010542,2]
[348944174,1736884234494,-500.0,0.00010542,2]
[348944175,1736884234503,-500.0,0.00010542,2]
[348944176,1736884234512,-502.50374329,0.00010542,2]
[348944177,1736884234522,-500.0,0.00010542,2]
[348944178,1736884234531,-503.16268167,0.00010542,2]
[348944179,1736884234540,-500.0,0.00010542,2]
[348944180,1736884234551,-500.0,0.00010542,2]
[348944181,1736884234561,-500.0,0.00010542,2]
[348944182,1736884234571,-500.0,0.00010542,2]
[348944183,1736884234581,-531.38,0.00010542,2]
[348944184,1736884234590,-500.0,0.00010542,2]
[348944185,1736884234599,-500.0,0.00010542,2]
[348944186,1736884234610,-588.30831226,0.00010542,2]
[348944187,1736884234620,-500.0,0.00010542,2]
[348944188,1736884234629,-585.39,0.00010542,2]
[348944189,1736884234641,-563.15,0.00010542,2]
[348944190,1736884234651,-500.0,0.00010542,2]
[348944191,1736884234660,-500.0,0.00010542,2]
[348944192,1736884234669,-502.28783497,0.00010542,2]
[348944193,1736884234679,-500.0,0.00010542,2]
[348944194,1736884234689,-500.0,0.00010542,2]
[348944195,1736884234698,-161.24552455,0.00010542,2]
[348944196,1736884234709,-500.0,0.00010542,2]
[348944197,1736884234719,-500.0,0.00010542,2]
[348944198,1736884234729,-501.94654661,0.00010542,2]
[348944199,1736884234740,-909.06,0.00010542,2]
[348944200,1736884234749,-501.24449055,0.00010542,2]
[348944201,1736884234759,-505.92971405,0.00010542,2]
[348944202,1736884234768,-500.0,0.00010542,2]
[348944203,1736884234778,-1880.48,0.00010542,2]
[348944204,1736884234787,-811.44,0.00010542,2]
[348944205,1736884234796,-500.0,0.00010542,2]
[348944206,1736884234805,-500.0,0.00010542,2]
[348944207,1736884234815,-500.0,0.00010542,2]
[348944208,1736884234824,-500.99339069,0.00010542,2]
[348944209,1736884234833,-275.04007865,0.00010542,2]
[348944210,1736884234842,-500.0,0.00010542,2]
[348944211,1736884234851,-500.0,0.00010542,2]
[348944212,1736884234860,-502.95954897,0.00010542,2]
[348944213,1736884234870,-525.25,0.00010542,2]
[348944214,1736884234879,-500.0,0.00010542,2]
[348944215,1736884234889,-504.17217169,0.00010542,2]
[348944216,1736884234899,-500.0,0.00010542,2]
[348944217,1736884234909,-500.0,0.00010542,2]
[348944218,1736884234919,-500.0,0.00010542,2]
[348944219,1736884234928,-740.43,0.00010542,2]
[348944220,1736884234939,-1330.62,0.00010542,2]
[348944221,1736884234949,-152.14533104,0.00010542,2]
[348944222,1736884234960,-500.0,0.00010542,2]
[348944223,1736884234971,-500.0,0.00010542,2]
[348944224,1736884234980,-500.0,0.00010542,2]
[348944225,1736884234989,-500.0,0.00010542,2]
[348944226,1736884234998,-548.67,0.00010542,2]
[348944227,1736884235007,-722.54,0.00010542,2]
[348944228,1736884235016,-500.0,0.00010542,2]
[348944229,1736884235025,-500.0,0.00010542,2]
[348944230,1736884235035,-500.0,0.00010542,2]
[348944231,1736884235044,-3602.55,0.00010542,2]
[348944232,1736884235053,-500.0,0.00010542,2]
[348944233,1736884235062,-500.0,0.00010542,2]
[348944234,1736884235072,-501.61934249,0.00010542,2]
[348944235,1736884235082,-500.0,0.00010542,2]
[348944236,1736884235091,-514.64,0.00010542,2]
[348944237,1736884235103,-500.0,0.00010542,2]
[348944238,1736884235115,-581.44,0.00010542,2]
[348944239,1736884235125,-513.43,0.00010542,2]
[348944240,1736884235134,-500.0,0.00010542,2]
[348944241,1736884235144,-500.0,0.00010542,2]
[348944242,1736884235155,-500.0,0.00010542,2]
[348944243,1736884235165,-500.0,0.00010542,2]
[348944244,1736884235177,-500.0,0.00010542,2]
[348944245,1736884235187,-500.0,0.00010542,2]
[348944246,1736884235198,-500.0,0.00010542,2]
[348944247,1736884235208,-500.0,0.00010542,2]
[348944248,1736884235218,-500.0,0.00010542,2]
[348944249,1736884235229,-500.0,0.00010542,2]
[348944250,1736884235239,-500.0,0.00010542,2]
[348944251,1736884235248,-990.12,0.00010542,2]
[348944252,1736884235259,-500.0,0.00010542,2]
[348944253,1736884235271,-500.0,0.00010542,2]
[348944254,1736884235280,-500.0,0.00010542,2]
[348944255,1736884235288,-500.0,0.00010542,2]
[348944256,1736884235297,-500.0,0.00010542,2]
[348944257,1736884235306,-500.0,0.00010542,2]
[348944258,1736884235315,-639.66,0.00010542,2]
[348944259,1736884235325,-653.38,0.00010542,2]
[348944260,1736884235334,-540.02,0.00010542,2]
[348944261,1736884235343,-500.0,0.00010542,2]
[348944262,1736884235353,-584.48,0.00010542,2]
[348944263,1736884235363,-500.0,0.00010542,2]
[348944264,1736884235372,-500.0,0.00010542,2]
[348944265,1736884235381,-483.46269313,0.00010542,2]
[348944266,1736884235391,-500.0,0.00010542,2]
[348944267,1736884235400,-500.0,0.00010542,2]
[348944268,1736884235410,-500.0,0.00010542,2]
[348944269,1736884235419,-500.0,0.00010542,2]
[348944270,1736884235429,-500.0,0.00010542,2]
[348944271,1736884235439,-500.0,0.00010542,2]
[348944272,1736884235448,-1023.83,0.00010542,2]
[348944273,1736884235457,-889.74,0.00010542,2]
[348944274,1736884235466,-500.0,0.00010542,2]
[348944275,1736884235476,-500.0,0.00010542,2]
[348944276,1736884235485,-500.0,0.00010542,2]
[348944277,1736884235494,-500.0,0.00010542,2]
[348944278,1736884235504,-500.0,0.00010542,2]
[348944279,1736884235515,-500.0,0.00010542,2]
[348944280,1736884235524,-500.0,0.00010542,2]
[348944281,1736884235535,-1129.5,0.00010542,2]
[348944282,1736884235545,-500.0,0.00010542,2]
[348944283,1736884235555,-500.0,0.00010542,2]
[348944284,1736884235566,-500.0,0.00010542,2]
[348944285,1736884235575,-500.0,0.00010542,2]
[348944286,1736884235586,-500.0,0.00010542,2]
[348944287,1736884235595,-1106.92,0.00010542,2]
[348944288,1736884235604,-500.0,0.00010542,2]
[348944289,1736884235613,-500.0,0.00010542,2]
[348944290,1736884235622,-500.0,0.00010542,2]
[348944291,1736884235631,-500.0,0.00010542,2]
[348944292,1736884235641,-645.67,0.00010542,2]
[348944293,1736884235650,-500.0,0.00010542,2]
[348944294,1736884235659,-500.0,0.00010542,2]
[348944295,1736884235669,-500.0,0.00010542,2]
[348944296,1736884235679,-1862.63,0.00010542,2]
[348944297,1736884235688,-1000.0,0.00010542,2]
[348944298,1736884235697,-1415.62,0.00010542,2]
[348944299,1736884235707,-500.0,0.00010542,2]
[348944300,1736884235720,-500.0,0.00010542,2]
[348944301,1736884235730,-3259.79,0.00010542,2]
[348944302,1736884235740,-743.83,0.00010542,2]
[348944303,1736884235750,-1711.45,0.00010542,2]
[348944304,1736884235760,-1024.64,0.00010542,2]
[348944305,1736884235769,-836.06,0.00010542,2]
[348944306,1736884235778,-500.0,0.00010542,2]
[348944307,1736884235788,-367.98118626,0.00010542,2]
[348944308,1736884235798,-500.0,0.00010542,2]
[348944309,1736884235808,-665.94,0.00010542,2]
[348944310,1736884235817,-500.0,0.00010542,2]
[348944311,1736884235827,-500.0,0.00010542,2]
[348944312,1736884235836,-500.0,0.00010542,2]
[348944313,1736884235847,-500.0,0.00010542,2]
[348944314,1736884235856,-781.3,0.00010542,2]
[348944315,1736884235866,-1568.75,0.00010542,2]
[348944316,1736884235877,-921.86,0.00010542,2]
[348944317,1736884235888,-500.0,0.00010542,2]
[348944318,1736884235898,-500.0,0.00010542,2]
[348944319,1736884235909,-500.0,0.00010542,2]
[348944320,1736884235918,-500.0,0.00010542,2]
[348944321,1736884235928,-500.0,0.00010542,2]
[348944322,1736884235938,-500.0,0.00010542,2]
[348944323,1736884235948,-1240.47,0.00010542,2]
[348944324,1736884235959,-2387.93,0.00010542,2]
[348944325,1736884235968,-500.0,0.00010542,2]
[348944326,1736884235977,-500.0,0.00010542,2]
[348944327,1736884235987,-500.0,0.00010542,2]
[348944328,1736884235998,-500.0,0.00010542,2]
[348944329,1736884236008,-1509.37,0.00010542,2]
[348944330,1736884236018,-1285.2,0.00010542,2]
[348944331,1736884236028,-612.010858,0.00010542,2]
[348944332,1736884236038,-842.34,0.00010542,2]
[348944333,1736884236047,-500.0,0.00010542,2]
[348944334,1736884236056,-500.0,0.00010542,2]
[348944335,1736884236066,-529.64,0.00010542,2]
[348944336,1736884236076,-158.711189,0.00010542,2]
[348944337,1736884236086,-630.89,0.00010542,2]
[348944338,1736884236096,-500.0,0.00010542,2]
[348944339,1736884236110,-817.27,0.00010542,2]
[348944340,1736884236119,-500.0,0.00010542,2]
[348944341,1736884236129,-837.5,0.00010542,2]
[348944342,1736884236139,-500.0,0.00010542,2]
[348944343,1736884236150,-500.0,0.00010542,2]
[348944344,1736884236161,-500.0,0.00010542,2]
[348944345,1736884236170,-1034.39,0.00010543,2]
[348944346,1736884236181,-159.16570207,0.00010579,2]
[348944347,1736884236190,-159.16570207,0.00010648,2]
[348944348,1736884236201,-5000.0,0.00010684,2]
[348944349,1736884236211,-159.16570207,0.00010717,2]
[348944350,1736884236222,-429.93842545,0.00010739,2]
[348944351,1736884236231,-500.0,0.0001078,2]
[348944352,1736884236240,-500.0,0.0001078,2]
[348944353,1736884236250,-500.0,0.0001078,2]
[348944354,1736884236259,-500.0,0.0001078,2]
[348944355,1736884236269,-500.0,0.0001078,2]
[348944356,1736884236279,-500.0,0.0001078,2]
[348944357,1736884236289,-500.0,0.0001078,2]
[348944358,1736884236298,-500.0,0.0001078,2]
[348944359,1736884236307,-500.0,0.0001078,2]
[348944360,1736884236316,-500.0,0.0001078,2]
[348944361,1736884236325,-500.0,0.0001078,2]
[348944362,1736884236334,-500.0,0.0001078,2]
[348944363,1736884236343,-500.0,0.0001078,2]
[348944364,1736884236353,-500.0,0.0001078,2]
[348944365,1736884236363,-500.0,0.0001078,2]
[348944366,1736884236372,-500.0,0.0001078,2]
[348944367,1736884236381,-500.0,0.0001078,2]
[348944368,1736884236393,-500.0,0.0001078,2]
[348944369,1736884236402,-500.0,0.0001078,2]
[348944370,1736884236411,-500.0,0.0001078,2]
[348944371,1736884236421,-500.0,0.0001078,2]
[348944372,1736884236431,-196.06568716,0.0001078,2]
[348944373,1736884236440,-500.0,0.0001078,2]
[348944374,1736884236450,-500.0,0.0001078,2]
[348944375,1736884236460,-500.0,0.0001078,2]
[348944376,1736884236470,-500.0,0.0001078,2]
[348944377,1736884236480,-500.0,0.0001078,2]
[348944378,1736884236489,-500.0,0.0001078,2]
[348944379,1736884236499,-500.0,0.0001078,2]
[348944380,1736884236509,-500.0,0.0001078,2]
[348944381,1736884236519,-500.0,0.0001078,2]
[348944382,1736884236528,-500.0,0.0001078,2]
[348944383,1736884236538,-500.0,0.0001078,2]
[348944384,1736884236547,-500.0,0.0001078,2]
[348944385,1736884236557,-500.0,0.0001078,2]
[348944386,1736884236567,-500.0,0.0001078,2]
[348944387,1736884236578,-500.0,0.0001078,2]
[348944388,1736884236590,-534.92,0.0001078,2]
[348944389,1736884236600,-606.82015076,0.0001078,2]
[348944390,1736884236610,-537.16,0.0001078,2]
[348944391,1736884236619,-500.0,0.0001078,2]
[348944392,1736884236630,-500.0,0.0001078,2]
[348944393,1736884236642,-500.0,0.0001078,2]
[348944394,1736884236651,-500.0,0.0001078,2]
[348944395,1736884236661,-500.0,0.0001078,2]
[348944396,1736884236671,-500.0,0.0001078,2]
[348944397,1736884236680,-500.0,0.0001078,2]
[348944398,1736884236690,-500.0,0.0001078,2]
[348944399,1736884236699,-500.0,0.0001078,2]
[348944400,1736884236709,-500.0,0.0001078,2]
[348944401,1736884236719,-500.0,0.0001078,2]
[348944402,1736884236729,-500.0,0.0001078,2]
[348944403,1736884236739,-500.0,0.0001078,2]
[348944404,1736884236749,-500.0,0.0001078,2]
[348944405,1736884236759,-522.19,0.0001078,2]
[348944406,1736884236769,-500.0,0.0001078,2]
[348944407,1736884236779,-500.0,0.0001078,2]
[348944408,1736884236789,-163.40714128,0.0001078,2]
[348944409,1736884236798,-500.0,0.0001078,2]
[348944410,1736884236808,-500.0,0.0001078,2]
[348944411,1736884236817,-500.0,0.0001078,2]
[348944412,1736884236827,-500.0,0.0001078,2]
[348944413,1736884236836,-500.0,0.0001078,2]
[348944414,1736884236845,-631.2,0.0001078,2]
[348944415,1736884236854,-500.0,0.0001078,2]
[348944416,1736884236864,-500.0,0.0001078,2]
[348944417,1736884236873,-520.51,0.0001078,2]
[348944418,1736884236883,-500.0,0.0001078,2]
[348944419,1736884236893,-500.0,0.0001078,2]
[348944420,1736884236903,-500.0,0.0001078,2]
[348944421,1736884236912,-500.0,0.0001078,2]
[348944422,1736884236922,-500.0,0.0001078,2]
[348944423,1736884236931,-500.0,0.0001078,2]
[348944424,1736884236940,-500.0,0.0001078,2]
[348944425,1736884236950,-500.0,0.0001078,2]
[348944426,1736884236960,-500.0,0.0001078,2]
[348944427,1736884236973,-500.0,0.0001078,2]
[348944428,1736884236982,-500.0,0.0001078,2]
[348944429,1736884236992,-500.0,0.0001078,2]
[348944430,1736884237002,-500.0,0.0001078,2]
[348944431,1736884237011,-500.0,0.0001078,2]
[348944432,1736884237021,-504.85,0.0001078,2]
[348944433,1736884237031,-2619.92,0.0001078,2]
[348944434,1736884237040,-500.0,0.0001078,2]
[348944435,1736884237050,-500.0,0.0001078,2]
[348944436,1736884237060,-500.0,0.0001078,2]
[348944437,1736884237068,-500.0,0.0001078,2]
[348944438,1736884237078,-500.0,0.0001078,2]
[348944439,1736884237088,-500.0,0.0001078,2]
[348944440,1736884237097,-500.0,0.0001078,2]
[348944441,1736884237110,-500.0,0.0001078,2]
[348944442,1736884237120,-500.0,0.0001078,2]
[348944443,1736884237129,-1771.76,0.0001078,2]
[348944444,1736884237140,-500.0,0.0001078,2]
[348944445,1736884237151,-500.0,0.0001078,2]
[348944446,1736884237160,-500.0,0.0001078,2]
[348944447,1736884237170,-500.0,0.0001078,2]
[348944448,1736884237180,-500.0,0.0001078,2]
[348944449,1736884237189,-500.0,0.0001078,2]
[348944450,1736884237198,-500.0,0.0001078,2]
[348944451,1736884237208,-500.0,0.0001078,2]
[348944452,1736884237218,-1944.06,0.0001078,2]
[348944453,1736884237227,-500.0,0.0001078,2]
[348944454,1736884237237,-500.0,0.0001078,2]
[348944455,1736884237247,-500.0,0.0001078,2]
[348944456,1736884237256,-1000.0,0.00010781,2]
[348944457,1736884237265,-500.0,0.00010783,2]
[348944458,1736884237275,-570.54,0.00010783,2]
[348944459,1736884237284,-506.10653137,0.00010784,2]
[348944460,1736884237294,-502.93399887,0.00010784,2]
[348944461,1736884237303,-557.74499737,0.00010784,2]
[348944462,1736884237313,-500.6201531,0.00010784,2]
[348944463,1736884237323,-275.55308672,0.00010784,2]
[348944464,1736884237332,-500.0,0.00010784,2]
[348944465,1736884237342,-500.0,0.00010784,2]
[348944466,1736884237351,-500.0,0.00010784,2]
[348944467,1736884237360,-500.52462055,0.00010784,2]
[348944468,1736884237370,-500.0,0.00010784,2]
[348944469,1736884237379,-500.77020984,0.00010784,2]
[348944470,1736884237389,-500.43541427,0.00010784,2]
[348944471,1736884237399,-501.99067918,0.00010784,2]
[348944472,1736884237408,-500.90117774,0.00010784,2]
[348944473,1736884237417,-397.99543455,0.00010784,2]
[348944474,1736884237426,-500.0,0.00010784,2]
[348944475,1736884237436,-500.53963215,0.00010784,2]
[348944476,1736884237445,-500.0,0.00010784,2]
[348944477,1736884237454,-368.4030658,0.00010784,2]
[348944478,1736884237464,-500.0,0.00010784,2]
[348944479,1736884237473,-500.0,0.00010784,2]
[348944480,1736884237483,-500.0,0.00010784,2]
[348944481,1736884237492,-265.14643546,0.00010784,2]
[348944482,1736884237502,-500.0,0.00010784,2]
[348944483,1736884237514,-560.61097573,0.00010784,2]
[348944484,1736884237535,-503.8001967,0.00010784,2]